[Event "*** Titled Tuesday Blitz"]
[Site "Chess.com"]
[Date "2020.12.01"]
[Round "11"]
[White "stepanosinovsky"]
[Black "ShahMatKanal"]
[Result "1-0"]
[WhiteElo "2315"]
[BlackElo "2457"]
[TimeControl "180+1"]
[EndTime "12:05:47 PST"]
[Termination "stepanosinovsky won by checkmate"]

1. e4 {[%clk 0:03:00.9]} 1... c5 {[%clk 0:02:58.5]} 2. Nf3 {[%clk 0:03:00.6]}
2... Nc6 {[%clk 0:02:55.6]} 3. Bb5 {[%clk 0:02:59.8]} 3... g6 {[%clk 0:02:55.5]}
4. Bxc6 {[%clk 0:02:58.4]} 4... dxc6 {[%clk 0:02:56.4]} 5. O-O {[%clk
0:02:58.6]} 5... Bg7 {[%clk 0:02:56.8]} 6. Re1 {[%clk 0:02:58.6]} 6... e5 {[%clk
0:02:56.8]} 7. a3 {[%clk 0:02:53]} 7... a5 {[%clk 0:02:51.9]} 8. d3 {[%clk
0:02:47.4]} 8... a4 {[%clk 0:02:48.3]} 9. Be3 {[%clk 0:02:45.3]} 9... Qe7 {[%clk
0:02:40.6]} 10. Nbd2 {[%clk 0:02:23.8]} 10... Nf6 {[%clk 0:02:36.1]} 11. Nc4
{[%clk 0:02:23.5]} 11... Nd7 {[%clk 0:02:34.3]} 12. b4 {[%clk 0:02:22.6]} 12...
axb3 {[%clk 0:02:32.9]} 13. cxb3 {[%clk 0:02:22.2]} 13... O-O {[%clk 0:02:24.9]}
14. a4 {[%clk 0:02:22]} 14... b6 {[%clk 0:02:11.8]} 15. a5 {[%clk 0:02:14.5]}
15... b5 {[%clk 0:02:04.8]} 16. Nb6 {[%clk 0:02:12.3]} 16... Nxb6 {[%clk
0:01:32]} 17. axb6 {[%clk 0:02:13.2]} 17... Rxa1 {[%clk 0:01:32.4]} 18. Qxa1
{[%clk 0:02:12.6]} 18... Rd8 {[%clk 0:01:30.6]} 19. Qa8 {[%clk 0:01:43.8]} 19...
Bb7 {[%clk 0:01:18.5]} 20. Bxc5 {[%clk 0:01:31.3]} 20... Qd7 {[%clk 0:01:04.6]}
21. Qa1 {[%clk 0:01:18.2]} 21... Qxd3 {[%clk 0:00:59.5]} 22. h3 {[%clk
0:01:16.9]} 22... Ra8 {[%clk 0:00:32.8]} 23. Qd1 {[%clk 0:01:12.2]} 23... Qc3
{[%clk 0:00:25.7]} 24. Qd7 {[%clk 0:01:08.9]} 24... Qxc5 {[%clk 0:00:17]} 25.
Qxb7 {[%clk 0:01:08.7]} 25... Qa3 {[%clk 0:00:06.1]} 26. Rd1 {[%clk 0:01:01.5]}
26... Bf8 {[%clk 0:00:05.6]} 27. Ng5 {[%clk 0:00:49.6]} 27... Qe7 {[%clk
0:00:04.8]} 28. Qxa8 {[%clk 0:00:49]} 28... Qxg5 {[%clk 0:00:04.9]} 29. b7
{[%clk 0:00:48.9]} 29... Kg7 {[%clk 0:00:05]} 30. b8=Q {[%clk 0:00:48.5]} 30...
Bc5 {[%clk 0:00:05.1]} 31. Qa2 {[%clk 0:00:43.7]} 31... Qf4 {[%clk 0:00:04.2]}
32. Qe2 {[%clk 0:00:42.9]} 32... h5 {[%clk 0:00:03.9]} 33. Qd8 {[%clk
0:00:42.4]} 33... h4 {[%clk 0:00:03.8]} 34. Qdd2 {[%clk 0:00:42.9]} 34... Qf6
{[%clk 0:00:03.9]} 35. Rc1 {[%clk 0:00:42.5]} 35... Bb6 {[%clk 0:00:03.5]} 36.
Qd7 {[%clk 0:00:42.4]} 36... Bd4 {[%clk 0:00:03]} 37. Rxc6 {[%clk 0:00:41.9]}
37... Qf4 {[%clk 0:00:03.3]} 38. Rc2 {[%clk 0:00:41.3]} 38... Qg5 {[%clk
0:00:02.4]} 39. Qd5 {[%clk 0:00:40.8]} 39... Qf4 {[%clk 0:00:02.4]} 40. Qf3
{[%clk 0:00:40.8]} 40... Qg5 {[%clk 0:00:02.3]} 41. Qfxf7+ {[%clk 0:00:38.6]}
41... Kh6 {[%clk 0:00:02.7]} 42. Qf8+ {[%clk 0:00:38.6]} 42... Kh5 {[%clk
0:00:02.9]} 43. Qf3+ {[%clk 0:00:37.9]} 43... Kh6 {[%clk 0:00:03]} 44. Qg8
{[%clk 0:00:36.9]} 44... Qe7 {[%clk 0:00:02.4]} 45. Qh8+ {[%clk 0:00:35.7]}
45... Kg5 {[%clk 0:00:02.8]} 46. Qg4# {[%clk 0:00:35.8]} 1-0

[Event "*** Titled Tuesday Blitz"]
[Site "Chess.com"]
[Date "2020.12.01"]
[Round "11"]
[White "nitpicker"]
[Black "DarZay"]
[Result "0-1"]
[WhiteElo "2249"]
[BlackElo "2173"]
[TimeControl "180+1"]
[EndTime "12:05:47 PST"]
[Termination "DarZay won on time"]

1. d4 {[%clk 0:03:00.9]} 1... d5 {[%clk 0:02:59.9]} 2. c4 {[%clk 0:03:00.8]}
2... e6 {[%clk 0:02:59.6]} 3. Nf3 {[%clk 0:03:00.3]} 3... Be7 {[%clk 0:02:58.2]}
4. g3 {[%clk 0:03:00.2]} 4... Nf6 {[%clk 0:02:58.2]} 5. Bg2 {[%clk 0:03:00.4]}
5... O-O {[%clk 0:02:57.4]} 6. O-O {[%clk 0:03:00.3]} 6... dxc4 {[%clk
0:02:57.7]} 7. Ne5 {[%clk 0:03:00.4]} 7... Nbd7 {[%clk 0:02:45.6]} 8. Nxc4
{[%clk 0:02:57.6]} 8... Nb6 {[%clk 0:02:45.5]} 9. Na5 {[%clk 0:02:37.6]} 9... c6
{[%clk 0:02:42.2]} 10. Nc3 {[%clk 0:02:36.6]} 10... Nbd5 {[%clk 0:02:25.5]} 11.
Nc4 {[%clk 0:02:36.5]} 11... Nxc3 {[%clk 0:02:21.8]} 12. bxc3 {[%clk 0:02:36.1]}
12... Bd7 {[%clk 0:02:22]} 13. Rb1 {[%clk 0:02:34]} 13... b5 {[%clk 0:02:20.4]}
14. Ne5 {[%clk 0:02:31.9]} 14... Rc8 {[%clk 0:02:19.9]} 15. e4 {[%clk
0:02:30.1]} 15... Bd6 {[%clk 0:02:16.2]} 16. f4 {[%clk 0:02:29.3]} 16... c5
{[%clk 0:02:11.5]} 17. Bb2 {[%clk 0:02:04.8]} 17... Ne8 {[%clk 0:01:56.8]} 18.
Qe2 {[%clk 0:01:57.1]} 18... f6 {[%clk 0:01:51]} 19. Nd3 {[%clk 0:01:56.9]}
19... cxd4 {[%clk 0:01:42.4]} 20. cxd4 {[%clk 0:01:55.7]} 20... b4 {[%clk
0:01:41.9]} 21. e5 {[%clk 0:01:46.1]} 21... Be7 {[%clk 0:01:39.7]} 22. d5 {[%clk
0:01:42.2]} 22... Qb6+ {[%clk 0:01:27.2]} 23. Kh1 {[%clk 0:01:39.7]} 23... exd5
{[%clk 0:01:24.6]} 24. Bxd5+ {[%clk 0:01:39]} 24... Be6 {[%clk 0:01:22.8]} 25.
Bxe6+ {[%clk 0:01:31.5]} 25... Qxe6 {[%clk 0:01:22.5]} 26. Qe4 {[%clk
0:01:05.8]} 26... f5 {[%clk 0:01:16.1]} 27. Qf3 {[%clk 0:00:58.5]} 27... Nc7
{[%clk 0:00:59.1]} 28. Bd4 {[%clk 0:00:49.4]} 28... Nb5 {[%clk 0:00:56.4]} 29.
Bf2 {[%clk 0:00:38.9]} 29... a5 {[%clk 0:00:51.8]} 30. Rfc1 {[%clk 0:00:23.3]}
30... Nc3 {[%clk 0:00:47.4]} 31. Rb2 {[%clk 0:00:21]} 31... Rcd8 {[%clk
0:00:36.8]} 32. Kg2 {[%clk 0:00:18.8]} 32... Rd7 {[%clk 0:00:32.2]} 33. Rcc2
{[%clk 0:00:15.4]} 33... Rfd8 {[%clk 0:00:31.2]} 34. Nc5 {[%clk 0:00:15.5]}
34... Bxc5 {[%clk 0:00:29.4]} 35. Bxc5 {[%clk 0:00:16]} 35... Rd3 {[%clk
0:00:29.2]} 36. Qb7 {[%clk 0:00:15.7]} 36... Nd1 {[%clk 0:00:19.4]} 37. Rb1
{[%clk 0:00:07.8]} 37... R8d7 {[%clk 0:00:18]} 38. Qa8+ {[%clk 0:00:06.8]} 38...
Kf7 {[%clk 0:00:18.1]} 0-1

[Event "*** Titled Tuesday Blitz"]
[Site "Chess.com"]
[Date "2020.12.01"]
[Round "11"]
[White "daro94"]
[Black "GregShahade"]
[Result "1-0"]
[WhiteElo "2856"]
[BlackElo "2704"]
[TimeControl "180+1"]
[EndTime "12:05:49 PST"]
[Termination "daro94 won by checkmate"]

1. e4 {[%clk 0:03:00.9]} 1... e5 {[%clk 0:03:00.2]} 2. Nf3 {[%clk 0:03:01]} 2...
Nc6 {[%clk 0:03:00.7]} 3. Bb5 {[%clk 0:03:01]} 3... a6 {[%clk 0:03:01.2]} 4. Ba4
{[%clk 0:03:01.1]} 4... Nf6 {[%clk 0:03:01.7]} 5. O-O {[%clk 0:03:01.2]} 5...
Be7 {[%clk 0:03:02.2]} 6. d3 {[%clk 0:03:01.4]} 6... b5 {[%clk 0:03:02.5]} 7.
Bb3 {[%clk 0:03:01.9]} 7... d6 {[%clk 0:03:03.2]} 8. a4 {[%clk 0:03:00.2]} 8...
Bd7 {[%clk 0:03:02.7]} 9. c3 {[%clk 0:02:57.7]} 9... O-O {[%clk 0:03:01.8]} 10.
Re1 {[%clk 0:02:57.8]} 10... Na5 {[%clk 0:03:00.8]} 11. Bc2 {[%clk 0:02:57.9]}
11... c5 {[%clk 0:02:59.8]} 12. Nbd2 {[%clk 0:02:58.4]} 12... Re8 {[%clk
0:02:57]} 13. Nf1 {[%clk 0:02:58.7]} 13... b4 {[%clk 0:02:53.4]} 14. h3 {[%clk
0:02:50.8]} 14... h6 {[%clk 0:02:52.3]} 15. Ng3 {[%clk 0:02:43.9]} 15... Bf8
{[%clk 0:02:51.5]} 16. d4 {[%clk 0:02:36]} 16... Qc7 {[%clk 0:02:32.4]} 17. cxb4
{[%clk 0:02:23.1]} 17... cxb4 {[%clk 0:02:29]} 18. b3 {[%clk 0:02:23.5]} 18...
Rec8 {[%clk 0:02:17.4]} 19. Re2 {[%clk 0:02:11.5]} 19... Nc6 {[%clk 0:02:01.4]}
20. Bb2 {[%clk 0:02:08.1]} 20... Re8 {[%clk 0:01:33.7]} 21. Rc1 {[%clk
0:02:06.5]} 21... Qb6 {[%clk 0:01:31.4]} 22. Qd2 {[%clk 0:01:49.8]} 22... a5
{[%clk 0:01:25.9]} 23. Bd3 {[%clk 0:01:27]} 23... Rac8 {[%clk 0:01:25.6]} 24.
Bc4 {[%clk 0:01:22.3]} 24... Rcd8 {[%clk 0:01:09.1]} 25. d5 {[%clk 0:01:12.1]}
25... Nb8 {[%clk 0:01:06.7]} 26. Qd3 {[%clk 0:01:08.1]} 26... Rc8 {[%clk
0:01:03.1]} 27. Rcc2 {[%clk 0:01:02]} 27... Rc7 {[%clk 0:01:03.3]} 28. Bc1
{[%clk 0:01:02.2]} 28... Rec8 {[%clk 0:01:00.5]} 29. Be3 {[%clk 0:01:02.7]}
29... Qb7 {[%clk 0:01:00.2]} 30. Re1 {[%clk 0:01:00.8]} 30... Be8 {[%clk
0:00:59.4]} 31. Rec1 {[%clk 0:00:59.6]} 31... g6 {[%clk 0:00:57]} 32. Qd2 {[%clk
0:00:55.8]} 32... Kh7 {[%clk 0:00:56.5]} 33. Qd3 {[%clk 0:00:54.6]} 33... Nfd7
{[%clk 0:00:54.6]} 34. h4 {[%clk 0:00:51.9]} 34... h5 {[%clk 0:00:51.9]} 35. Qe2
{[%clk 0:00:49]} 35... Nc5 {[%clk 0:00:51.5]} 36. Ng5+ {[%clk 0:00:43.8]} 36...
Kg8 {[%clk 0:00:51.3]} 37. Bxc5 {[%clk 0:00:34.3]} 37... Rxc5 {[%clk 0:00:50.7]}
38. Bb5 {[%clk 0:00:18]} 38... Rxc2 {[%clk 0:00:38.8]} 39. Rxc2 {[%clk
0:00:18.9]} 39... Rxc2 {[%clk 0:00:39.1]} 40. Qxc2 {[%clk 0:00:19.7]} 40... Bxb5
{[%clk 0:00:34.6]} 41. axb5 {[%clk 0:00:20.6]} 41... Qxb5 {[%clk 0:00:34.4]} 42.
Qc8 {[%clk 0:00:20.6]} 42... Qb6 {[%clk 0:00:22.3]} 43. Nxh5 {[%clk 0:00:16.7]}
43... gxh5 {[%clk 0:00:19.2]} 44. Qf5 {[%clk 0:00:16.7]} 44... Bg7 {[%clk
0:00:09.7]} 45. Qxf7+ {[%clk 0:00:16.3]} 45... Kh8 {[%clk 0:00:10.2]} 46. Qe8+
{[%clk 0:00:16.8]} 46... Bf8 {[%clk 0:00:10.5]} 47. Qxf8# {[%clk 0:00:17.7]} 1-0

[Event "*** Titled Tuesday Blitz"]
[Site "Chess.com"]
[Date "2020.12.01"]
[Round "11"]
[White "diamonds13"]
[Black "skoularikii"]
[Result "0-1"]
[WhiteElo "2341"]
[BlackElo "2457"]
[TimeControl "180+1"]
[EndTime "12:05:49 PST"]
[Termination "skoularikii won by resignation"]

1. d4 {[%clk 0:03:00.9]} 1... d5 {[%clk 0:02:59]} 2. c4 {[%clk 0:03:00.5]} 2...
c6 {[%clk 0:02:59.1]} 3. Nf3 {[%clk 0:03:00.1]} 3... Nf6 {[%clk 0:02:58.1]} 4.
Nbd2 {[%clk 0:02:59.9]} 4... e6 {[%clk 0:02:54.4]} 5. g3 {[%clk 0:02:59.6]} 5...
Be7 {[%clk 0:02:51.2]} 6. Bg2 {[%clk 0:02:59.8]} 6... O-O {[%clk 0:02:51.8]} 7.
O-O {[%clk 0:03:00.3]} 7... Nbd7 {[%clk 0:02:52.5]} 8. b3 {[%clk 0:03:00.7]}
8... b6 {[%clk 0:02:53]} 9. Bb2 {[%clk 0:03:01]} 9... Bb7 {[%clk 0:02:53.7]} 10.
Rc1 {[%clk 0:03:00.6]} 10... dxc4 {[%clk 0:02:51.6]} 11. bxc4 {[%clk 0:03:00.4]}
11... c5 {[%clk 0:02:52]} 12. d5 {[%clk 0:02:57.8]} 12... exd5 {[%clk
0:02:47.2]} 13. Nh4 {[%clk 0:02:57.7]} 13... Rb8 {[%clk 0:02:36.3]} 14. cxd5
{[%clk 0:02:49.7]} 14... Nxd5 {[%clk 0:02:31.8]} 15. Nf5 {[%clk 0:02:44.1]}
15... Bf6 {[%clk 0:02:22.4]} 16. Bxf6 {[%clk 0:02:32.3]} 16... Qxf6 {[%clk
0:02:21.8]} 17. e4 {[%clk 0:02:29.1]} 17... Nc3 {[%clk 0:01:54.2]} 18. Rxc3
{[%clk 0:02:10.4]} 18... Qxc3 {[%clk 0:01:53.8]} 19. Nb1 {[%clk 0:02:09.6]}
19... Qb2 {[%clk 0:01:51]} 20. Qxd7 {[%clk 0:02:08.5]} 20... Rfd8 {[%clk
0:01:41.2]} 21. Qc7 {[%clk 0:02:01.2]} 21... Ba6 {[%clk 0:01:34.8]} 22. e5
{[%clk 0:01:21.9]} 22... Bxf1 {[%clk 0:01:23.1]} 23. Bxf1 {[%clk 0:01:21.9]}
23... Qxb1 {[%clk 0:01:04.1]} 24. Nd6 {[%clk 0:01:21.6]} 24... Rf8 {[%clk
0:00:55.3]} 25. Kg2 {[%clk 0:01:18.6]} 25... Rbd8 {[%clk 0:00:51]} 26. Be2
{[%clk 0:01:08.6]} 26... Qc2 {[%clk 0:00:45.4]} 27. Bf3 {[%clk 0:01:03.6]} 27...
Qd3 {[%clk 0:00:43.5]} 28. Be4 {[%clk 0:00:57.8]} 28... Qd4 {[%clk 0:00:41]} 29.
Qe7 {[%clk 0:00:35.1]} 29... c4 {[%clk 0:00:30]} 30. Qh4 {[%clk 0:00:31.1]}
30... g6 {[%clk 0:00:27]} 31. Qe7 {[%clk 0:00:28.7]} 31... c3 {[%clk 0:00:25.2]}
32. h4 {[%clk 0:00:25.9]} 32... h5 {[%clk 0:00:21]} 33. e6 {[%clk 0:00:20.2]}
33... Qxd6 {[%clk 0:00:15.8]} 34. exf7+ {[%clk 0:00:20.2]} 34... Rxf7 {[%clk
0:00:15.4]} 35. Qg5 {[%clk 0:00:20.7]} 35... Qf6 {[%clk 0:00:12.8]} 36. Qh6
{[%clk 0:00:19.4]} 36... Qxf2+ {[%clk 0:00:12.6]} 37. Kh3 {[%clk 0:00:19.7]}
37... Qf1+ {[%clk 0:00:12.5]} 38. Bg2 {[%clk 0:00:20]} 38... Qf5+ {[%clk
0:00:11.4]} 39. Kh2 {[%clk 0:00:20.2]} 39... Rd2 {[%clk 0:00:09.9]} 40. Qe3
{[%clk 0:00:18.1]} 40... Rxg2+ {[%clk 0:00:09.4]} 41. Kxg2 {[%clk 0:00:18.2]}
41... Qf1+ {[%clk 0:00:10.1]} 42. Kh2 {[%clk 0:00:17.8]} 42... Rf2+ {[%clk
0:00:10.3]} 0-1

[Event "*** Titled Tuesday Blitz"]
[Site "Chess.com"]
[Date "2020.12.01"]
[Round "11"]
[White "Xeniya2005"]
[Black "Jungle_Jaguar"]
[Result "0-1"]
[WhiteElo "2430"]
[BlackElo "2549"]
[TimeControl "180+1"]
[EndTime "12:05:50 PST"]
[Termination "Jungle_Jaguar won by resignation"]

1. e4 {[%clk 0:03:00.9]} 1... c5 {[%clk 0:02:59.2]} 2. Nf3 {[%clk 0:02:59.5]}
2... d6 {[%clk 0:02:59.6]} 3. Bb5+ {[%clk 0:02:58.3]} 3... Nd7 {[%clk
0:02:58.3]} 4. Ba4 {[%clk 0:02:56]} 4... a6 {[%clk 0:02:57.3]} 5. c4 {[%clk
0:02:55.7]} 5... Nf6 {[%clk 0:02:52.4]} 6. O-O {[%clk 0:02:52.9]} 6... e6 {[%clk
0:02:47.7]} 7. d3 {[%clk 0:02:51.4]} 7... Be7 {[%clk 0:02:47.5]} 8. Nc3 {[%clk
0:02:49.7]} 8... O-O {[%clk 0:02:47.4]} 9. Re1 {[%clk 0:02:48.7]} 9... Qc7
{[%clk 0:02:43.9]} 10. h3 {[%clk 0:02:46.4]} 10... Rd8 {[%clk 0:02:43.4]} 11.
Bf4 {[%clk 0:02:44.2]} 11... e5 {[%clk 0:02:36.1]} 12. Bh2 {[%clk 0:02:41]}
12... Nf8 {[%clk 0:02:36.2]} 13. Qd2 {[%clk 0:02:35.7]} 13... Ne6 {[%clk
0:02:30.3]} 14. Nd5 {[%clk 0:02:30.1]} 14... Nxd5 {[%clk 0:02:28.6]} 15. exd5
{[%clk 0:02:28.7]} 15... Nd4 {[%clk 0:02:26]} 16. Nxd4 {[%clk 0:02:27.3]} 16...
cxd4 {[%clk 0:02:26.5]} 17. f4 {[%clk 0:02:23.8]} 17... f6 {[%clk 0:02:12.5]}
18. Bd1 {[%clk 0:02:18.4]} 18... Bf5 {[%clk 0:02:04.9]} 19. Bf3 {[%clk
0:02:15.8]} 19... Re8 {[%clk 0:02:01.7]} 20. Be4 {[%clk 0:02:10.6]} 20... Bxe4
{[%clk 0:01:57.7]} 21. dxe4 {[%clk 0:02:05.3]} 21... Qxc4 {[%clk 0:01:54.2]} 22.
Rac1 {[%clk 0:02:03.6]} 22... Qb5 {[%clk 0:01:54.2]} 23. f5 {[%clk 0:01:49]}
23... Bd8 {[%clk 0:01:27]} 24. g4 {[%clk 0:01:38.9]} 24... Ba5 {[%clk 0:01:26]}
25. Qg2 {[%clk 0:01:36.3]} 25... Bxe1 {[%clk 0:01:23.4]} 26. Rxe1 {[%clk
0:01:37.2]} 26... Rac8 {[%clk 0:01:08.7]} 27. Rf1 {[%clk 0:01:33.8]} 27... d3
{[%clk 0:01:06.7]} 28. g5 {[%clk 0:01:24]} 28... Rc2 {[%clk 0:01:01.5]} 29. Qg4
{[%clk 0:01:03.9]} 29... Rf8 {[%clk 0:00:59.6]} 30. gxf6 {[%clk 0:00:59.2]}
30... Rxf6 {[%clk 0:00:58.4]} 31. Bg3 {[%clk 0:00:58.3]} 31... d2 {[%clk
0:00:51.2]} 32. Rd1 {[%clk 0:00:45.4]} 32... Rc1 {[%clk 0:00:47.8]} 33. Kf2
{[%clk 0:00:36.2]} 33... Qxb2 {[%clk 0:00:27.6]} 34. Bh4 {[%clk 0:00:26.1]}
34... Rxd1 {[%clk 0:00:22.3]} 35. Qxd1 {[%clk 0:00:23.1]} 35... Qd4+ {[%clk
0:00:22.7]} 36. Kf3 {[%clk 0:00:17.8]} 36... Qd3+ {[%clk 0:00:21.2]} 37. Kf2
{[%clk 0:00:17.2]} 37... Rh6 {[%clk 0:00:13.7]} 38. Bg5 {[%clk 0:00:16.5]} 38...
Rxh3 {[%clk 0:00:13.5]} 39. f6 {[%clk 0:00:15.8]} 39... Rh2+ {[%clk 0:00:12.5]}
40. Kg1 {[%clk 0:00:14.8]} 40... Qg3+ {[%clk 0:00:12.9]} 0-1

[Event "*** Titled Tuesday Blitz"]
[Site "Chess.com"]
[Date "2020.12.01"]
[Round "11"]
[White "Andrii_Prydun"]
[Black "nonsopolo1"]
[Result "0-1"]
[WhiteElo "2330"]
[BlackElo "2224"]
[TimeControl "180+1"]
[EndTime "12:05:50 PST"]
[Termination "nonsopolo1 won on time"]

1. d4 {[%clk 0:02:50.8]} 1... Nf6 {[%clk 0:02:58.6]} 2. c4 {[%clk 0:02:42.4]}
2... g6 {[%clk 0:02:58.5]} 3. f3 {[%clk 0:02:13.8]} 3... Bg7 {[%clk 0:02:55.7]}
4. g4 {[%clk 0:02:13.1]} 4... d6 {[%clk 0:02:44.8]} 5. h4 {[%clk 0:02:11.6]}
5... h5 {[%clk 0:02:43.1]} 6. g5 {[%clk 0:02:09.1]} 6... Nfd7 {[%clk 0:02:42.9]}
7. e4 {[%clk 0:01:54]} 7... c5 {[%clk 0:02:37.9]} 8. d5 {[%clk 0:01:53.4]} 8...
Ne5 {[%clk 0:02:35.2]} 9. f4 {[%clk 0:01:50.8]} 9... Ng4 {[%clk 0:02:32.1]} 10.
Bd3 {[%clk 0:01:45.1]} 10... O-O {[%clk 0:02:21.1]} 11. f5 {[%clk 0:01:43.2]}
11... Nd7 {[%clk 0:02:15.4]} 12. Nf3 {[%clk 0:01:41]} 12... a6 {[%clk 0:02:11]}
13. a4 {[%clk 0:01:37.7]} 13... Rb8 {[%clk 0:02:08.4]} 14. a5 {[%clk 0:01:37]}
14... b5 {[%clk 0:02:06.9]} 15. axb6 {[%clk 0:01:36.2]} 15... Rxb6 {[%clk
0:02:00.4]} 16. Nc3 {[%clk 0:01:33.6]} 16... Nde5 {[%clk 0:01:57.1]} 17. Nxe5
{[%clk 0:01:31.7]} 17... Bxe5 {[%clk 0:01:55.3]} 18. O-O {[%clk 0:01:31.1]}
18... e6 {[%clk 0:01:35.7]} 19. f6 {[%clk 0:01:29.1]} 19... Qd7 {[%clk
0:01:30.6]} 20. dxe6 {[%clk 0:01:24]} 20... Qxe6 {[%clk 0:01:26.3]} 21. Nd5
{[%clk 0:01:23.6]} 21... Rb8 {[%clk 0:01:04.4]} 22. Ra2 {[%clk 0:01:21.5]} 22...
Bb7 {[%clk 0:00:57.9]} 23. Ne7+ {[%clk 0:01:18.9]} 23... Kh7 {[%clk 0:00:57]}
24. b3 {[%clk 0:01:18.8]} 24... Bxe4 {[%clk 0:00:46.8]} 25. Bxe4 {[%clk
0:01:16.3]} 25... Bd4+ {[%clk 0:00:46.4]} 26. Qxd4 {[%clk 0:01:16.9]} 26... cxd4
{[%clk 0:00:45.2]} 27. Re2 {[%clk 0:01:16.6]} 27... Ne3 {[%clk 0:00:38.6]} 28.
Rf4 {[%clk 0:00:30]} 28... Rxb3 {[%clk 0:00:38.3]} 29. Bd5 {[%clk 0:00:24.3]}
29... Qe5 {[%clk 0:00:37.7]} 30. Bxe3 {[%clk 0:00:12.4]} 30... Rxe3 {[%clk
0:00:33.1]} 31. Ref2 {[%clk 0:00:11.9]} 31... d3 {[%clk 0:00:31.9]} 32. Nc6
{[%clk 0:00:05.9]} 32... Qa1+ {[%clk 0:00:29.6]} 33. Kg2 {[%clk 0:00:06.3]}
33... Re2 {[%clk 0:00:28.1]} 34. Nd4 {[%clk 0:00:06]} 34... Rxf2+ {[%clk
0:00:26.7]} 35. Kxf2 {[%clk 0:00:06.9]} 35... d2 {[%clk 0:00:25.5]} 36. Nc6
{[%clk 0:00:02.8]} 36... Qe1+ {[%clk 0:00:22.4]} 37. Kg2 {[%clk 0:00:01.4]}
37... d1=Q {[%clk 0:00:23.3]} 0-1

[Event "*** Titled Tuesday Blitz"]
[Site "Chess.com"]
[Date "2020.12.01"]
[Round "11"]
[White "Kaslask"]
[Black "MikeSailer"]
[Result "0-1"]
[WhiteElo "2312"]
[BlackElo "2179"]
[TimeControl "180+1"]
[EndTime "12:05:52 PST"]
[Termination "MikeSailer won by resignation"]

1. d4 {[%clk 0:03:00.9]} 1... d5 {[%clk 0:02:59.4]} 2. c4 {[%clk 0:03:00.4]}
2... Bf5 {[%clk 0:02:59.2]} 3. cxd5 {[%clk 0:02:52.7]} 3... Bxb1 {[%clk
0:02:58.6]} 4. Qa4+ {[%clk 0:02:49.8]} 4... c6 {[%clk 0:02:58.1]} 5. dxc6 {[%clk
0:02:48.6]} 5... Nxc6 {[%clk 0:02:58.3]} 6. Rxb1 {[%clk 0:02:46]} 6... e5 {[%clk
0:02:58.5]} 7. e3 {[%clk 0:02:36.5]} 7... Bb4+ {[%clk 0:02:53.8]} 8. Bd2 {[%clk
0:02:35.1]} 8... Bxd2+ {[%clk 0:02:53.5]} 9. Kxd2 {[%clk 0:02:34.9]} 9... exd4
{[%clk 0:02:53.9]} 10. Bd3 {[%clk 0:02:25.3]} 10... dxe3+ {[%clk 0:02:44.6]} 11.
fxe3 {[%clk 0:02:24.6]} 11... Qg5 {[%clk 0:02:38]} 12. Qe4+ {[%clk 0:02:10.8]}
12... Nge7 {[%clk 0:02:33.1]} 13. h4 {[%clk 0:02:10.5]} 13... Qa5+ {[%clk
0:02:27.2]} 14. Ke2 {[%clk 0:02:08]} 14... O-O-O {[%clk 0:02:15.4]} 15. Nf3
{[%clk 0:02:03.5]} 15... Rhe8 {[%clk 0:02:05.6]} 16. Rhc1 {[%clk 0:02:01.6]}
16... Nd5 {[%clk 0:01:47.1]} 17. Qg4+ {[%clk 0:01:53.5]} 17... Kb8 {[%clk
0:01:40.4]} 18. e4 {[%clk 0:01:48.8]} 18... f5 {[%clk 0:01:24.1]} 19. Qg3+
{[%clk 0:01:35.4]} 19... f4 {[%clk 0:01:19.1]} 20. Qxg7 {[%clk 0:01:34]} 20...
Rg8 {[%clk 0:01:05.9]} 21. b4 {[%clk 0:01:22.2]} 21... Qxa2+ {[%clk 0:00:49.4]}
22. Rc2 {[%clk 0:01:14.2]} 22... Rxg7 {[%clk 0:00:27.9]} 23. Rxa2 {[%clk
0:01:12.7]} 23... Nc3+ {[%clk 0:00:28.5]} 24. Kf2 {[%clk 0:01:08.7]} 24... Nxa2
{[%clk 0:00:29.4]} 25. b5 {[%clk 0:01:07.2]} 25... Nd4 {[%clk 0:00:29.4]} 26.
Ne5 {[%clk 0:01:05.5]} 26... Nc3 {[%clk 0:00:23.9]} 27. Rc1 {[%clk 0:01:03.9]}
27... Ncxb5 {[%clk 0:00:22.5]} 28. Rc5 {[%clk 0:00:59.7]} 28... a6 {[%clk
0:00:22.2]} 29. Bc4 {[%clk 0:00:57.8]} 29... Rc7 {[%clk 0:00:17.8]} 30. Rd5
{[%clk 0:00:55.4]} 30... Rxd5 {[%clk 0:00:15.3]} 31. exd5 {[%clk 0:00:53.3]}
31... Nd6 {[%clk 0:00:09.8]} 32. Bd3 {[%clk 0:00:52.3]} 32... Rc3 {[%clk
0:00:09.1]} 33. Bxh7 {[%clk 0:00:51]} 33... Nc4 {[%clk 0:00:07.4]} 34. h5 {[%clk
0:00:49.6]} 34... Nxe5 {[%clk 0:00:07.3]} 35. h6 {[%clk 0:00:48.7]} 35... Nf7
{[%clk 0:00:06.6]} 36. Be4 {[%clk 0:00:46.3]} 36... Nxh6 {[%clk 0:00:06.7]} 37.
d6 {[%clk 0:00:46.9]} 37... Ne6 {[%clk 0:00:06.8]} 38. Bd5 {[%clk 0:00:46.6]}
38... Nd8 {[%clk 0:00:07.2]} 39. Be4 {[%clk 0:00:44.1]} 39... Rc4 {[%clk
0:00:06.5]} 40. Kf3 {[%clk 0:00:43.9]} 40... Ne6 {[%clk 0:00:03.7]} 41. Bd5
{[%clk 0:00:42.9]} 41... Rc3+ {[%clk 0:00:03]} 42. Ke4 {[%clk 0:00:42.1]} 42...
Nd8 {[%clk 0:00:03.3]} 43. Ke5 {[%clk 0:00:42.1]} 43... Kc8 {[%clk 0:00:03.7]}
44. Be6+ {[%clk 0:00:41.1]} 44... Nxe6 {[%clk 0:00:03.9]} 45. Kxe6 {[%clk
0:00:41.1]} 45... Kd8 {[%clk 0:00:04.5]} 46. Ke5 {[%clk 0:00:41.3]} 46... Rg3
{[%clk 0:00:04]} 47. Kxf4 {[%clk 0:00:41.2]} 47... Rxg2 {[%clk 0:00:04.8]} 48.
Ke5 {[%clk 0:00:40.2]} 48... Rb2 {[%clk 0:00:05.2]} 0-1